[Event "Titled Tuesday Blitz June 13 Early 2023"]
[White "Clawitter, Craig"]
[Black "Kriti Mayur Patel"]
[WhiteFideId "2023105"]
[BlackFideId "35061780"]
[WhiteElo "2240"]
[BlackElo "1306"]
[Result "1/2-1/2"]
[Round "7"]
[TimeControl "180+2"]
[Date "2023.06.13"]
[WhiteClock "0:00:07"]
[BlackClock "0:00:19"]
[Board "184"]

1. e4 {[%clk 0:02:56]}  e5 {[%clk 0:02:58]} 2. Nc3 {[%clk 0:02:56]}  Nf6 {[%clk 0:02:58]} 3. g3 {[%clk 0:02:56]}  Bc5 {[%clk 0:02:56]} 4. Bg2 {[%clk 0:02:56]}  Nc6 {[%clk 0:02:56]} 5. Nge2 {[%clk 0:02:55]}  O-O {[%clk 0:02:56]} 6. O-O {[%clk 0:02:56]}  d6 {[%clk 0:02:56]} 7. Na4 {[%clk 0:02:51]}  Bb6 {[%clk 0:02:54]} 8. d3 {[%clk 0:02:49]}  Bg4 {[%clk 0:02:50]} 9. Nxb6 {[%clk 0:02:39]}  axb6 {[%clk 0:02:49]} 10. h3 {[%clk 0:02:39]}  Bh5 {[%clk 0:02:48]} 11. g4 {[%clk 0:02:39]}  Bg6 {[%clk 0:02:43]} 12. f4 {[%clk 0:02:38]}  exf4 {[%clk 0:02:39]} 13. Bxf4 {[%clk 0:02:36]}  Ne5 {[%clk 0:02:36]} 14. b3 {[%clk 0:02:28]}  Ra5 {[%clk 0:02:30]} 15. Ng3 {[%clk 0:02:23]}  Nfd7 {[%clk 0:02:17]} 16. d4 {[%clk 0:02:01]}  Nc6 {[%clk 0:02:05]} 17. Nf5 {[%clk 0:02:01]}  Bxf5 {[%clk 0:01:54]} 18. gxf5 {[%clk 0:01:59]}  Qh4 {[%clk 0:01:48]} 19. c3 {[%clk 0:01:56]}  Nf6 {[%clk 0:01:27]} 20. Qd2 {[%clk 0:01:54]}  h6 {[%clk 0:01:06]} 21. Rae1 {[%clk 0:01:33]}  Nh5 {[%clk 0:00:38]} 22. Bh2 {[%clk 0:01:22]}  Re8 {[%clk 0:00:30]} 23. a4 {[%clk 0:00:57]}  b5 {[%clk 0:00:28]} 24. d5 {[%clk 0:00:37]}  Ne5 {[%clk 0:00:22]} 25. c4 {[%clk 0:00:37]}  bxa4 {[%clk 0:00:21]} 26. Qxa5 {[%clk 0:00:37]}  axb3 {[%clk 0:00:20]} 27. Qxc7 {[%clk 0:00:33]}  b2 {[%clk 0:00:19]} 28. Qxd6 {[%clk 0:00:30]}  Nxc4 {[%clk 0:00:20]} 29. Qd7 {[%clk 0:00:25]}  Nf6 {[%clk 0:00:18]} 30. Qxb7 {[%clk 0:00:23]}  Nxe4 {[%clk 0:00:17]} 31. Rxe4 {[%clk 0:00:17]}  Rxe4 {[%clk 0:00:17]} 32. Bxe4 {[%clk 0:00:16]}  Qxe4 {[%clk 0:00:18]} 33. f6 {[%clk 0:00:12]}  Nd2 {[%clk 0:00:17]} 34. Qc8+ {[%clk 0:00:10]}  Kh7 {[%clk 0:00:17]} 35. fxg7 {[%clk 0:00:09]}  Kxg7 {[%clk 0:00:16]} 36. Qg4+ {[%clk 0:00:07]}  Qxg4+ {[%clk 0:00:16]} 37. hxg4 {[%clk 0:00:08]}  Nxf1 {[%clk 0:00:17]} 38. Be5+ {[%clk 0:00:08]}  Kg6 {[%clk 0:00:16]} 39. Bxb2 {[%clk 0:00:08]}  Ne3 {[%clk 0:00:17]} 40. Kf2 {[%clk 0:00:06]}  Nxd5 {[%clk 0:00:17]} 41. Kf3 {[%clk 0:00:06]}  Nf6 {[%clk 0:00:18]} 42. Bc1 {[%clk 0:00:05]}  Nd5 {[%clk 0:00:17]} 43. Kg3 {[%clk 0:00:05]}  Ne7 {[%clk 0:00:17]} 44. Bd2 {[%clk 0:00:06]}  f5 {[%clk 0:00:18]} 45. gxf5+ {[%clk 0:00:06]}  Nxf5+ {[%clk 0:00:19]} 46. Kh3 {[%clk 0:00:06]}  h5 {[%clk 0:00:19]} 47. Be1 {[%clk 0:00:06]}  Kg5 {[%clk 0:00:19]} 48. Kg2 {[%clk 0:00:07]}  Kg4 {[%clk 0:00:19]} 49. Kh2 {[%clk 0:00:07]}  h4 {[%clk 0:00:19]} 50. Bxh4 {[%clk 0:00:07]} 1/2-1/2


[Site "https://www.chess.com"]

[Event "Titled Tuesday Blitz June 13 Early 2023"]
[White "Alexanian, Nelli"]
[Black "SicilianPanzer"]
[WhiteFideId "4170539"]
[WhiteElo "2032"]
[BlackElo "2238"]
[Result "0-1"]
[Round "7"]
[TimeControl "180+2"]
[Date "2023.06.13"]
[WhiteClock "0:00:00"]
[BlackClock "0:00:03"]
[Board "185"]

1. d4 {[%clk 0:02:57]}  Nf6 {[%clk 0:02:59]} 2. c4 {[%clk 0:02:56]}  e6 {[%clk 0:02:59]} 3. Nc3 {[%clk 0:02:55]}  d5 {[%clk 0:02:59]} 4. cxd5 {[%clk 0:02:54]}  exd5 {[%clk 0:02:58]} 5. Bg5 {[%clk 0:02:53]}  Be7 {[%clk 0:02:58]} 6. e3 {[%clk 0:02:50]}  c6 {[%clk 0:02:58]} 7. Qc2 {[%clk 0:02:50]}  a5 {[%clk 0:02:58]} 8. Bd3 {[%clk 0:02:49]}  Na6 {[%clk 0:02:57]} 9. a3 {[%clk 0:02:45]}  Nc7 {[%clk 0:02:58]} 10. f4 {[%clk 0:02:34]}  Ne6 {[%clk 0:02:44]} 11. Nf3 {[%clk 0:02:32]}  Nxg5 {[%clk 0:02:35]} 12. fxg5 {[%clk 0:02:30]}  Ng4 {[%clk 0:02:29]} 13. Nd1 {[%clk 0:02:08]}  Bxg5 {[%clk 0:02:25]} 14. O-O {[%clk 0:02:04]}  g6 {[%clk 0:01:40]} 15. h3 {[%clk 0:01:47]}  Nh6 {[%clk 0:01:22]} 16. e4 {[%clk 0:01:40]}  dxe4 {[%clk 0:01:21]} 17. Bxe4 {[%clk 0:01:39]}  O-O {[%clk 0:01:18]} 18. Nc3 {[%clk 0:01:27]}  Be6 {[%clk 0:01:06]} 19. d5 {[%clk 0:01:08]}  cxd5 {[%clk 0:01:04]} 20. Rad1 {[%clk 0:00:58]}  Be3+ {[%clk 0:00:28]} 21. Kh1 {[%clk 0:00:56]}  d4 {[%clk 0:00:27]} 22. Nxd4 {[%clk 0:00:51]}  Bxd4 {[%clk 0:00:26]} 23. Nb5 {[%clk 0:00:35]}  Rc8 {[%clk 0:00:21]} 24. Qa4 {[%clk 0:00:25]}  Qh4 {[%clk 0:00:16]} 25. Rxd4 {[%clk 0:00:21]}  Bxh3 {[%clk 0:00:10]} 26. Bxg6 {[%clk 0:00:16]}  Bxg2+ {[%clk 0:00:08]} 27. Kxg2 {[%clk 0:00:16]}  Qg5+ {[%clk 0:00:07]} 28. Kh2 {[%clk 0:00:13]}  hxg6 {[%clk 0:00:07]} 29. Rg1 {[%clk 0:00:12]}  Qh5+ {[%clk 0:00:05]} 30. Rh4 {[%clk 0:00:12]}  Qe5+ {[%clk 0:00:05]} 31. Kh1 {[%clk 0:00:11]}  Nf5 {[%clk 0:00:05]} 32. Rh3 {[%clk 0:00:08]}  Qd5+ {[%clk 0:00:04]} 33. Kh2 {[%clk 0:00:04]}  Kg7 {[%clk 0:00:04]} 34. Qg4 {[%clk 0:00:00]}  Rh8 {[%clk 0:00:03]} 0-1


[Site "https://www.chess.com"]

[Event "Titled Tuesday Blitz June 13 Early 2023"]
[White "Mishra, Manoj"]
[Black "Necula, Iulian"]
[WhiteFideId "5006007"]
[BlackFideId "1232380"]
[WhiteElo "1847"]
[BlackElo "1790"]
[Result "0-1"]
[Round "7"]
[TimeControl "180+2"]
[Date "2023.06.13"]
[WhiteClock "0:00:00"]
[BlackClock "0:00:38"]
[Board "186"]

1. e4 {[%clk 0:03:00]}  d6 {[%clk 0:03:00]} 2. d4 {[%clk 0:02:58]}  Nf6 {[%clk 0:03:01]} 3. Bd3 {[%clk 0:02:54]}  Nbd7 {[%clk 0:03:02]} 4. f4 {[%clk 0:02:53]}  e5 {[%clk 0:03:01]} 5. Nf3 {[%clk 0:02:51]}  exd4 {[%clk 0:03:00]} 6. Nxd4 {[%clk 0:02:48]}  g6 {[%clk 0:03:00]} 7. O-O {[%clk 0:02:47]}  Bg7 {[%clk 0:03:00]} 8. Nc3 {[%clk 0:02:41]}  O-O {[%clk 0:03:00]} 9. f5 {[%clk 0:02:36]}  Ne5 {[%clk 0:02:57]} 10. Bg5 {[%clk 0:02:24]}  h6 {[%clk 0:02:47]} 11. Bh4 {[%clk 0:02:21]}  g5 {[%clk 0:02:47]} 12. Bg3 {[%clk 0:02:16]}  a6 {[%clk 0:02:40]} 13. Nf3 {[%clk 0:01:54]}  Re8 {[%clk 0:02:32]} 14. Nxe5 {[%clk 0:01:53]}  dxe5 {[%clk 0:02:33]} 15. Bc4 {[%clk 0:01:53]}  Qxd1 {[%clk 0:02:27]} 16. Raxd1 {[%clk 0:01:52]}  b5 {[%clk 0:02:24]} 17. Bd5 {[%clk 0:01:46]}  Rb8 {[%clk 0:02:22]} 18. Bc6 {[%clk 0:01:42]}  Re7 {[%clk 0:01:59]} 19. Rd8+ {[%clk 0:01:34]}  Kh7 {[%clk 0:01:59]} 20. Bf2 {[%clk 0:00:59]}  b4 {[%clk 0:01:53]} 21. Bc5 {[%clk 0:00:47]}  bxc3 {[%clk 0:01:49]} 22. Bxe7 {[%clk 0:00:20]}  cxb2 {[%clk 0:01:49]} 23. Rb1 {[%clk 0:00:20]}  Ng8 {[%clk 0:01:43]} 24. Ba3 {[%clk 0:00:18]}  Rb6 {[%clk 0:01:40]} 25. Rxb2 {[%clk 0:00:17]}  Rxc6 {[%clk 0:01:40]} 26. Rxc8 {[%clk 0:00:18]}  Rc4 {[%clk 0:01:38]} 27. Rbb8 {[%clk 0:00:16]}  Nf6 {[%clk 0:01:38]} 28. Be7 {[%clk 0:00:13]}  Nxe4 {[%clk 0:01:37]} 29. f6 {[%clk 0:00:11]}  Nxf6 {[%clk 0:01:35]} 30. Bxf6 {[%clk 0:00:09]}  Bxf6 {[%clk 0:01:35]} 31. Ra8 {[%clk 0:00:09]}  Rxc2 {[%clk 0:01:33]} 32. Rxa6 {[%clk 0:00:09]}  Kg7 {[%clk 0:01:28]} 33. Rb8 {[%clk 0:00:07]}  e4 {[%clk 0:01:25]} 34. a4 {[%clk 0:00:07]}  Bd4+ {[%clk 0:01:23]} 35. Kf1 {[%clk 0:00:06]}  e3 {[%clk 0:01:20]} 36. Re8 {[%clk 0:00:04]}  Rf2+ {[%clk 0:01:16]} 37. Ke1 {[%clk 0:00:04]}  Rxg2 {[%clk 0:01:16]} 38. Rc6 {[%clk 0:00:03]}  Bb6 {[%clk 0:01:14]} 39. Kd1 {[%clk 0:00:01]}  Rxh2 {[%clk 0:01:13]} 40. Ke1 {[%clk 0:00:01]}  Ra2 {[%clk 0:01:10]} 41. Re5 {[%clk 0:00:01]}  Rxa4 {[%clk 0:01:09]} 42. Ke2 {[%clk 0:00:02]}  Ra2+ {[%clk 0:01:08]} 43. Kf3 {[%clk 0:00:02]}  Rf2+ {[%clk 0:01:08]} 44. Kg3 {[%clk 0:00:02]}  e2 {[%clk 0:01:02]} 45. Rxb6 {[%clk 0:00:02]}  Rf1 {[%clk 0:00:46]} 46. Rxe2 {[%clk 0:00:02]}  cxb6 {[%clk 0:00:46]} 47. Rb2 {[%clk 0:00:03]}  Rf6 {[%clk 0:00:44]} 48. Kg4 {[%clk 0:00:03]}  Kg6 {[%clk 0:00:43]} 49. Rb5 {[%clk 0:00:03]}  h5+ {[%clk 0:00:43]} 50. Kg3 {[%clk 0:00:04]}  h4+ {[%clk 0:00:41]} 51. Kg4 {[%clk 0:00:03]}  Rf4+ {[%clk 0:00:41]} 52. Kh3 {[%clk 0:00:04]}  Rf3+ {[%clk 0:00:39]} 53. Kg2 {[%clk 0:00:04]}  Rg3+ {[%clk 0:00:39]} 54. Kh2 {[%clk 0:00:02]}  f5 {[%clk 0:00:39]} 55. Rxb6+ {[%clk 0:00:03]}  Kh5 {[%clk 0:00:40]} 56. Rb5 {[%clk 0:00:02]}  Kg4 {[%clk 0:00:39]} 57. Rb4+ {[%clk 0:00:01]}  f4 {[%clk 0:00:40]} 58. Rb5 {[%clk 0:00:02]}  f3 {[%clk 0:00:39]} 59. Rb4+ {[%clk 0:00:02]}  Kh5 {[%clk 0:00:39]} 60. Rb2 {[%clk 0:00:00]}  Rg2+ {[%clk 0:00:38]} 0-1


[Site "https://www.chess.com"]

[Event "Titled Tuesday Blitz June 13 Early 2023"]
[White "Hartikainen, Jarmo"]
[Black "Porat, Tori"]
[WhiteFideId "503134"]
[BlackFideId "30982626"]
[WhiteElo "2115"]
[BlackElo "1752"]
[Result "1-0"]
[Round "7"]
[TimeControl "180+2"]
[Date "2023.06.13"]
[WhiteClock "0:00:09"]
[BlackClock "0:00:21"]
[Board "188"]

1. e4 {[%clk 0:03:00]}  c5 {[%clk 0:02:58]} 2. c3 {[%clk 0:03:00]}  d5 {[%clk 0:02:58]} 3. exd5 {[%clk 0:03:00]}  Qxd5 {[%clk 0:02:58]} 4. d4 {[%clk 0:03:01]}  e6 {[%clk 0:02:57]} 5. Nf3 {[%clk 0:03:00]}  Nf6 {[%clk 0:02:56]} 6. Na3 {[%clk 0:03:00]}  a6 {[%clk 0:02:55]} 7. Nc4 {[%clk 0:02:58]}  Qd8 {[%clk 0:02:49]} 8. dxc5 {[%clk 0:02:50]}  Qxd1+ {[%clk 0:02:48]} 9. Kxd1 {[%clk 0:02:51]}  Bxc5 {[%clk 0:02:47]} 10. b4 {[%clk 0:02:40]}  Bxf2 {[%clk 0:02:44]} 11. Nd6+ {[%clk 0:02:25]}  Ke7 {[%clk 0:02:38]} 12. Bf4 {[%clk 0:01:45]}  Nd5 {[%clk 0:02:15]} 13. Ne4 {[%clk 0:01:41]}  Nxf4 {[%clk 0:01:46]} 14. Nxf2 {[%clk 0:01:40]}  Rd8+ {[%clk 0:01:45]} 15. Kc2 {[%clk 0:01:40]}  Nd5 {[%clk 0:01:43]} 16. a3 {[%clk 0:01:26]}  Nc6 {[%clk 0:01:40]} 17. c4 {[%clk 0:01:22]}  Ne3+ {[%clk 0:01:38]} 18. Kc3 {[%clk 0:01:17]}  Nxf1 {[%clk 0:01:38]} 19. Rhxf1 {[%clk 0:01:17]}  f6 {[%clk 0:01:36]} 20. Ne4 {[%clk 0:01:15]}  e5 {[%clk 0:01:33]} 21. Rae1 {[%clk 0:01:11]}  b5 {[%clk 0:01:23]} 22. c5 {[%clk 0:00:46]}  a5 {[%clk 0:01:22]} 23. Nd6 {[%clk 0:00:27]}  axb4+ {[%clk 0:01:20]} 24. axb4 {[%clk 0:00:28]}  Ra3+ {[%clk 0:01:07]} 25. Kb2 {[%clk 0:00:26]}  Ra4 {[%clk 0:01:05]} 26. Kc3 {[%clk 0:00:17]}  Rxb4 {[%clk 0:00:54]} 27. Rb1 {[%clk 0:00:16]}  Rxb1 {[%clk 0:00:52]} 28. Rxb1 {[%clk 0:00:17]}  b4+ {[%clk 0:00:52]} 29. Kc4 {[%clk 0:00:17]}  Ba6+ {[%clk 0:00:51]} 30. Kd5 {[%clk 0:00:16]}  Kd7 {[%clk 0:00:44]} 31. Nd2 {[%clk 0:00:16]}  Ne7+ {[%clk 0:00:44]} 32. Ke4 {[%clk 0:00:14]}  g6 {[%clk 0:00:42]} 33. Rxb4 {[%clk 0:00:14]}  f5+ {[%clk 0:00:42]} 34. Kf3 {[%clk 0:00:13]}  e4+ {[%clk 0:00:42]} 35. Kf2 {[%clk 0:00:13]}  Nc6 {[%clk 0:00:41]} 36. Rb6 {[%clk 0:00:12]}  Bc8 {[%clk 0:00:40]} 37. N2c4 {[%clk 0:00:12]}  Rf8 {[%clk 0:00:37]} 38. Nxc8 {[%clk 0:00:12]}  Rxc8 {[%clk 0:00:36]} 39. Ke3 {[%clk 0:00:12]}  Rb8 {[%clk 0:00:36]} 40. Ne5+ {[%clk 0:00:09]}  Nxe5 {[%clk 0:00:27]} 41. Rxb8 {[%clk 0:00:09]}  Ng4+ {[%clk 0:00:26]} 42. Kf4 {[%clk 0:00:09]}  Nxh2 {[%clk 0:00:23]} 43. Rb7+ {[%clk 0:00:09]}  Kc6 {[%clk 0:00:23]} 44. Rxh7 {[%clk 0:00:09]}  Kxc5 {[%clk 0:00:23]} 45. Rxh2 {[%clk 0:00:08]}  Kd5 {[%clk 0:00:22]} 46. Rh6 {[%clk 0:00:09]}  Kd4 {[%clk 0:00:21]} 47. Rxg6 {[%clk 0:00:09]}  e3 {[%clk 0:00:22]} 48. Re6 {[%clk 0:00:09]}  e2 {[%clk 0:00:22]} 49. Rxe2 {[%clk 0:00:08]}  Kd3 {[%clk 0:00:22]} 50. Re5 {[%clk 0:00:09]}  Kd2 {[%clk 0:00:23]} 51. Kxf5 {[%clk 0:00:08]}  Kd3 {[%clk 0:00:21]} 52. g4 {[%clk 0:00:09]} 1-0


[Site "https://www.chess.com"]

[Event "Titled Tuesday Blitz June 13 Early 2023"]
[White "Pein, Jonathan"]
[Black "Lakshmi C"]
[WhiteFideId "417092"]
[BlackFideId "25035347"]
[WhiteElo "2151"]
[BlackElo "1942"]
[Result "1-0"]
[Round "7"]
[TimeControl "180+2"]
[Date "2023.06.13"]
[WhiteClock "0:00:44"]
[BlackClock "0:00:00"]
[Board "190"]

1. e4 {[%clk 0:02:59]}  c5 {[%clk 0:02:37]} 2. Nh3 {[%clk 0:02:58]}  Nc6 {[%clk 0:02:29]} 3. f4 {[%clk 0:02:58]}  e6 {[%clk 0:02:29]} 4. Nf2 {[%clk 0:02:52]}  d5 {[%clk 0:02:30]} 5. d3 {[%clk 0:02:52]}  b6 {[%clk 0:02:27]} 6. g3 {[%clk 0:02:53]}  Bb7 {[%clk 0:02:27]} 7. Bg2 {[%clk 0:02:54]}  Qd7 {[%clk 0:02:28]} 8. O-O {[%clk 0:02:54]}  O-O-O {[%clk 0:02:27]} 9. Nc3 {[%clk 0:02:51]}  Nge7 {[%clk 0:02:16]} 10. a3 {[%clk 0:02:42]}  g6 {[%clk 0:02:07]} 11. b4 {[%clk 0:02:33]}  c4 {[%clk 0:02:01]} 12. exd5 {[%clk 0:02:28]}  exd5 {[%clk 0:01:59]} 13. dxc4 {[%clk 0:02:25]}  dxc4 {[%clk 0:01:59]} 14. Qxd7+ {[%clk 0:02:25]}  Rxd7 {[%clk 0:01:58]} 15. Nce4 {[%clk 0:02:12]}  Bg7 {[%clk 0:01:57]} 16. Rb1 {[%clk 0:02:09]}  Nd4 {[%clk 0:01:55]} 17. Be3 {[%clk 0:01:49]}  Nxc2 {[%clk 0:01:47]} 18. Bd2 {[%clk 0:01:50]}  Nd4 {[%clk 0:01:39]} 19. Kh1 {[%clk 0:01:44]}  b5 {[%clk 0:01:33]} 20. Bc3 {[%clk 0:01:42]}  Nef5 {[%clk 0:01:26]} 21. Ng4 {[%clk 0:01:37]}  Bxe4 {[%clk 0:00:59]} 22. Bxe4 {[%clk 0:01:36]}  Re8 {[%clk 0:00:58]} 23. Bg2 {[%clk 0:01:23]}  Ne3 {[%clk 0:00:42]} 24. Rfe1 {[%clk 0:01:21]}  Rde7 {[%clk 0:00:34]} 25. Ne5 {[%clk 0:01:17]}  Nxg2 {[%clk 0:00:31]} 26. Kxg2 {[%clk 0:01:14]}  Bxe5 {[%clk 0:00:25]} 27. fxe5 {[%clk 0:01:11]}  Nc6 {[%clk 0:00:15]} 28. Rf1 {[%clk 0:00:59]}  Nxe5 {[%clk 0:00:14]} 29. Bxe5 {[%clk 0:01:00]}  Rxe5 {[%clk 0:00:13]} 30. Rxf7 {[%clk 0:01:00]}  Re2+ {[%clk 0:00:13]} 31. Kh3 {[%clk 0:01:01]}  R8e7 {[%clk 0:00:13]} 32. Rf6 {[%clk 0:00:58]}  R7e5 {[%clk 0:00:07]} 33. Rd1 {[%clk 0:00:55]}  Rh5+ {[%clk 0:00:05]} 34. Kg4 {[%clk 0:00:56]}  Re4+ {[%clk 0:00:04]} 35. Kf3 {[%clk 0:00:56]}  Ree5 {[%clk 0:00:03]} 36. Rf8+ {[%clk 0:00:55]}  Kc7 {[%clk 0:00:04]} 37. Rf7+ {[%clk 0:00:55]}  Kc6 {[%clk 0:00:04]} 38. Rf6+ {[%clk 0:00:56]}  Kc7 {[%clk 0:00:04]} 39. Ra6 {[%clk 0:00:49]}  Rhf5+ {[%clk 0:00:04]} 40. Kg4 {[%clk 0:00:47]}  Kb7 {[%clk 0:00:04]} 41. Rad6 {[%clk 0:00:44]}  Re4+ {[%clk 0:00:04]} 42. Kh3 {[%clk 0:00:44]}  Rh5+ {[%clk 0:00:03]} 43. Kg2 {[%clk 0:00:44]}  Re2+ {[%clk 0:00:03]} 44. Kf3 {[%clk 0:00:45]}  Rhxh2 {[%clk 0:00:03]} 45. Rd7+ {[%clk 0:00:45]}  Kc8 {[%clk 0:00:02]} 46. Rd8+ {[%clk 0:00:46]}  Kc7 {[%clk 0:00:02]} 47. R1d7+ {[%clk 0:00:47]}  Kc6 {[%clk 0:00:03]} 48. Rd6+ {[%clk 0:00:47]}  Kc7 {[%clk 0:00:03]} 49. R8d7+ {[%clk 0:00:48]}  Kc8 {[%clk 0:00:04]} 50. Rxa7 {[%clk 0:00:46]}  Kb8 {[%clk 0:00:03]} 51. Rg7 {[%clk 0:00:44]}  Rhf2+ {[%clk 0:00:03]} 52. Kg4 {[%clk 0:00:44]}  h5+ {[%clk 0:00:03]} 53. Kg5 {[%clk 0:00:45]}  Re5+ {[%clk 0:00:02]} 54. Kxg6 {[%clk 0:00:44]}  Rf8 {[%clk 0:00:02]} 55. Rb6+ {[%clk 0:00:42]}  Ka8 {[%clk 0:00:02]} 56. Ra6+ {[%clk 0:00:43]}  Kb8 {[%clk 0:00:02]} 57. Rd6 {[%clk 0:00:41]}  Ref5 {[%clk 0:00:02]} 58. Rdd7 {[%clk 0:00:41]}  Kc8 {[%clk 0:00:02]} 59. Rc7+ {[%clk 0:00:41]}  Kb8 {[%clk 0:00:02]} 60. Rb7+ {[%clk 0:00:41]}  Kc8 {[%clk 0:00:03]} 61. Ra7 {[%clk 0:00:42]}  Kb8 {[%clk 0:00:03]} 62. Rgb7+ {[%clk 0:00:42]}  Kc8 {[%clk 0:00:01]} 63. Rc7+ {[%clk 0:00:43]}  Kb8 {[%clk 0:00:00]} 64. Rh7 {[%clk 0:00:44]} 1-0


[Site "https://www.chess.com"]

[Event "Titled Tuesday Blitz June 13 Early 2023"]
[White "Freile Martin, Javier"]
[Black "Torres Dominguez, David"]
[WhiteFideId "3600165"]
[BlackFideId "2220857"]
[WhiteElo "2320"]
[BlackElo "1999"]
[Result "1-0"]
[Round "7"]
[TimeControl "180+2"]
[Date "2023.06.13"]
[WhiteClock "0:01:38"]
[BlackClock "0:00:00"]
[Board "192"]

1. c4 {[%clk 0:03:00]}  e5 {[%clk 0:03:00]} 2. Nc3 {[%clk 0:03:00]}  Nc6 {[%clk 0:03:01]} 3. Nf3 {[%clk 0:02:59]}  f5 {[%clk 0:03:00]} 4. e3 {[%clk 0:02:58]}  e4 {[%clk 0:02:59]} 5. Nd4 {[%clk 0:02:57]}  Nxd4 {[%clk 0:02:59]} 6. exd4 {[%clk 0:02:57]}  Nf6 {[%clk 0:03:00]} 7. d3 {[%clk 0:02:56]}  Bb4 {[%clk 0:02:59]} 8. Bd2 {[%clk 0:02:55]}  Bxc3 {[%clk 0:02:55]} 9. Bxc3 {[%clk 0:02:52]}  O-O {[%clk 0:02:56]} 10. Be2 {[%clk 0:02:51]}  d5 {[%clk 0:02:52]} 11. O-O {[%clk 0:02:50]}  c6 {[%clk 0:02:51]} 12. f3 {[%clk 0:02:46]}  Be6 {[%clk 0:02:49]} 13. fxe4 {[%clk 0:02:39]}  fxe4 {[%clk 0:02:49]} 14. dxe4 {[%clk 0:02:38]}  Nxe4 {[%clk 0:02:50]} 15. Bd3 {[%clk 0:02:32]}  Nxc3 {[%clk 0:02:46]} 16. bxc3 {[%clk 0:02:30]}  Qh4 {[%clk 0:02:46]} 17. Qe2 {[%clk 0:02:25]}  dxc4 {[%clk 0:02:42]} 18. Qxe6+ {[%clk 0:02:24]}  Kh8 {[%clk 0:02:42]} 19. Bxc4 {[%clk 0:02:23]}  Rfe8 {[%clk 0:02:34]} 20. Qf5 {[%clk 0:02:18]}  h6 {[%clk 0:02:31]} 21. Bd3 {[%clk 0:02:17]}  g6 {[%clk 0:02:27]} 22. Qxg6 {[%clk 0:02:14]}  Re7 {[%clk 0:02:27]} 23. Rae1 {[%clk 0:02:08]}  Rae8 {[%clk 0:02:25]} 24. Qxe8+ {[%clk 0:01:52]}  Rxe8 {[%clk 0:02:26]} 25. Rxe8+ {[%clk 0:01:51]}  Kg7 {[%clk 0:02:23]} 26. Re4 {[%clk 0:01:42]}  Qg5 {[%clk 0:02:16]} 27. h3 {[%clk 0:01:41]}  Qa5 {[%clk 0:00:00]} 28. Rg4+ {[%clk 0:01:38]} 1-0


[Site "https://www.chess.com"]

[Event "Titled Tuesday Blitz June 13 Early 2023"]
[White "Winkels, Marcel"]
[Black "Slayyy_200"]
[WhiteFideId "1003887"]
[WhiteElo "1900"]
[BlackElo "2033"]
[Result "1-0"]
[Round "7"]
[TimeControl "180+2"]
[Date "2023.06.13"]
[WhiteClock "0:00:40"]
[BlackClock "0:00:04"]
[Board "193"]

1. e4 {[%clk 0:03:00]}  c5 {[%clk 0:02:59]} 2. Nf3 {[%clk 0:03:00]}  Nc6 {[%clk 0:02:59]} 3. d4 {[%clk 0:02:59]}  cxd4 {[%clk 0:03:00]} 4. Nxd4 {[%clk 0:02:59]}  Nf6 {[%clk 0:03:01]} 5. Nc3 {[%clk 0:03:00]}  e5 {[%clk 0:03:01]} 6. Ndb5 {[%clk 0:03:00]}  d6 {[%clk 0:03:00]} 7. Bg5 {[%clk 0:03:01]}  a6 {[%clk 0:02:59]} 8. Na3 {[%clk 0:03:01]}  b5 {[%clk 0:02:59]} 9. Bxf6 {[%clk 0:03:01]}  gxf6 {[%clk 0:02:58]} 10. Nd5 {[%clk 0:03:02]}  f5 {[%clk 0:02:58]} 11. c3 {[%clk 0:03:02]}  Be6 {[%clk 0:02:58]} 12. exf5 {[%clk 0:02:55]}  Bxf5 {[%clk 0:02:57]} 13. Nc2 {[%clk 0:02:55]}  Bg7 {[%clk 0:02:56]} 14. Nce3 {[%clk 0:02:55]}  Bg6 {[%clk 0:02:56]} 15. h4 {[%clk 0:02:54]}  h5 {[%clk 0:02:46]} 16. Bd3 {[%clk 0:02:50]}  O-O {[%clk 0:02:41]} 17. Nf5 {[%clk 0:02:39]}  e4 {[%clk 0:02:14]} 18. Bxe4 {[%clk 0:02:32]}  Re8 {[%clk 0:02:13]} 19. Qf3 {[%clk 0:02:30]}  Ne5 {[%clk 0:02:06]} 20. Qh3 {[%clk 0:02:15]}  Nd3+ {[%clk 0:01:43]} 21. Qxd3 {[%clk 0:02:09]}  Bxf5 {[%clk 0:01:43]} 22. f3 {[%clk 0:01:52]}  Re5 {[%clk 0:01:18]} 23. O-O-O {[%clk 0:01:47]}  Bxe4 {[%clk 0:01:15]} 24. fxe4 {[%clk 0:01:45]}  Rc8 {[%clk 0:01:14]} 25. Ne3 {[%clk 0:01:41]}  Rc6 {[%clk 0:01:02]} 26. Nf5 {[%clk 0:01:39]}  Re6 {[%clk 0:00:49]} 27. Rhf1 {[%clk 0:01:32]}  Qc7 {[%clk 0:00:46]} 28. a3 {[%clk 0:01:25]}  Bxc3 {[%clk 0:00:42]} 29. Kb1 {[%clk 0:01:17]}  Be5 {[%clk 0:00:34]} 30. Qd2 {[%clk 0:01:05]}  Rg6 {[%clk 0:00:30]} 31. Nh6+ {[%clk 0:01:03]}  Kg7 {[%clk 0:00:25]} 32. Rxf7+ {[%clk 0:00:59]}  Qxf7 {[%clk 0:00:21]} 33. Nxf7 {[%clk 0:01:00]}  Kxf7 {[%clk 0:00:22]} 34. Rf1+ {[%clk 0:00:59]}  Kg7 {[%clk 0:00:20]} 35. Qd5 {[%clk 0:00:55]}  Rc7 {[%clk 0:00:18]} 36. Rc1 {[%clk 0:00:51]}  Rxc1+ {[%clk 0:00:17]} 37. Kxc1 {[%clk 0:00:51]}  Rxg2 {[%clk 0:00:18]} 38. b4 {[%clk 0:00:48]}  Bb2+ {[%clk 0:00:15]} 39. Kd1 {[%clk 0:00:47]}  Bc3 {[%clk 0:00:14]} 40. Qxd6 {[%clk 0:00:45]}  Rg1+ {[%clk 0:00:12]} 41. Kc2 {[%clk 0:00:44]}  Bf6 {[%clk 0:00:11]} 42. Qd7+ {[%clk 0:00:43]}  Kg6 {[%clk 0:00:11]} 43. Qf5+ {[%clk 0:00:41]}  Kf7 {[%clk 0:00:10]} 44. Qxh5+ {[%clk 0:00:41]}  Ke6 {[%clk 0:00:10]} 45. Qd5+ {[%clk 0:00:40]}  Ke7 {[%clk 0:00:10]} 46. e5 {[%clk 0:00:40]}  Bxh4 {[%clk 0:00:04]} 47. Qc5+ {[%clk 0:00:40]}  Ke6 {[%clk 0:00:04]} 48. Qxg1 {[%clk 0:00:41]}  Kxe5 {[%clk 0:00:05]} 49. Qg4 {[%clk 0:00:40]}  Bf6 {[%clk 0:00:05]} 50. Qc8 {[%clk 0:00:40]}  Kd5 {[%clk 0:00:04]} 51. Qxa6 {[%clk 0:00:40]} 1-0


[Site "https://www.chess.com"]